bitfinex/quotes_BTCUSD_20251120
["timestamp","ask_amount","ask_price","bid_price","bid_amount"]
[1763661040882,0.00012573,86990.0,86984.0,0.323]
[1763661041984,0.00012573,86990.0,86981.0,0.323]
[1763661042491,0.04928976,86987.0,86981.0,0.323]
[1763661042616,0.04928976,86978.0,86960.0,0.63567233]
[1763661042833,0.04928976,86977.0,86960.0,0.63567233]
[1763661043697,0.01999998,86980.0,86961.0,0.323]
[1763661044201,0.01999998,86980.0,86962.0,0.11476708]
[1763661044501,0.02012571,86990.0,86971.0,0.323]
[1763661044704,0.02012571,86990.0,86972.0,0.01173]
[1763661045144,0.01012572,86990.0,86972.0,0.00937]
[1763661045274,0.06732986,86986.0,86972.0,0.00937]
[1763661045505,0.00091397,86974.0,86972.0,0.00937]
[1763661045705,0.06732986,86986.0,86972.0,0.00937]
[1763661046046,0.0180401,86986.0,86972.0,0.00937]
[1763661046188,0.0180401,86986.0,86972.0,0.02915435]
[1763661046392,0.0180401,86986.0,86973.0,0.11476708]
[1763661046589,0.0180401,86986.0,86974.0,0.323]
[1763661046894,0.00012573,86990.0,86975.0,0.02129]
[1763661047106,0.0180383,87015.0,86988.0,0.323]
[1763661047312,0.00041887,87015.0,86995.0,0.323]
[1763661047717,0.00041887,87015.0,86996.0,0.02116]
[1763661047915,0.00041887,87015.0,87006.0,0.34416]
[1763661048124,0.00041887,87015.0,87007.0,0.02116]
[1763661048338,0.0004,87020.0,87007.0,0.02116]
[1763661048339,0.0004,87020.0,87015.0,0.323]
[1763661048535,0.00052559,87020.0,87016.0,0.02074]
[1763661049439,0.00052559,87020.0,87015.0,0.09094964]
[1763661049631,0.00052559,87020.0,87011.0,0.323]
[1763661050245,0.001,87015.0,87011.0,0.323]
[1763661050406,0.001,87015.0,87011.0,0.04139496]
[1763661050615,0.00052559,87020.0,87006.0,0.323]
[1763661050817,0.00052559,87020.0,87016.0,0.002]
[1763661051216,0.00052559,87020.0,87006.0,0.323]
[1763661051420,0.00195327,87007.0,87006.0,0.323]
[1763661052110,0.00195327,87007.0,87006.0,0.34374]
[1763661052618,0.00195327,87007.0,87006.0,0.45850708]
[1763661052823,3.27e-06,87007.0,87006.0,0.45950708]
[1763661053124,0.00052559,87020.0,87006.0,0.55045672]
[1763661053251,0.00052559,87020.0,87007.0,0.02074]
[1763661053454,0.00052559,87020.0,87007.0,0.34374]
[1763661053641,0.00052559,87020.0,87008.0,0.02074]
[1763661054324,0.00052559,87020.0,87009.0,0.01379167]
[1763661054699,0.00052559,87020.0,87010.0,0.02074]
[1763661055046,0.0004,87030.0,87012.0,0.05210249]
[1763661055302,0.001,87033.0,87029.0,0.01085]
[1763661055510,0.001,87033.0,87030.0,0.34322]
[1763661055863,0.001,87033.0,87031.0,0.02022]
[1763661056616,0.0002,87040.0,87031.0,0.02022]
[1763661056919,0.0002,87060.0,87040.0,0.323]
[1763661057184,0.00032556,87060.0,87057.0,0.323]
[1763661057886,0.00032556,87060.0,87051.0,0.323]
[1763661059391,0.00032556,87060.0,87051.0,0.324]
[1763661059599,0.00032556,87060.0,87052.0,0.323]
[1763661059808,0.05210249,87093.0,87052.0,0.323]
[1763661060005,0.04928976,87070.0,87060.0,0.63567233]
[1763661060315,0.01412,87081.0,87051.0,0.002]
[1763661060716,0.04928976,87052.0,87051.0,0.001]
[1763661060926,0.01412,87081.0,87051.0,0.001]
[1763661061130,0.01412,87081.0,87051.0,0.36589]
[1763661061327,0.01802464,87068.0,87052.0,0.10015623]
[1763661061526,0.01802464,87068.0,87052.0,0.14204623]
[1763661061734,0.00144792,87053.0,87052.0,0.10115623]
[1763661062167,0.00144792,87053.0,87036.0,0.11476708]
[1763661062168,0.00144792,87053.0,87040.0,0.63567233]
[1763661062314,0.01,87053.0,87040.0,0.00012556]
[1763661062519,0.01802464,87068.0,87040.0,0.00012556]
[1763661062520,0.04928976,87049.0,87040.0,0.00012556]
[1763661062830,0.04928976,87049.0,87040.0,0.32312556]
[1763661063032,0.01802464,87068.0,87040.0,0.00012556]
[1763661063033,0.04928976,87052.0,87040.0,0.00012556]
[1763661063246,0.03907,87055.0,87052.0,0.001]
[1763661063247,0.04928976,87053.0,87052.0,0.001]
[1763661063808,0.01,87054.0,87052.0,0.001]
[1763661064222,0.04928976,87055.0,87045.0,0.33678597]
[1763661064480,0.04928976,87058.0,87046.0,0.0861411]
[1763661064683,0.04928976,87053.0,87045.0,0.323]
[1763661064941,0.01802464,87068.0,87042.0,0.02005]
[1763661064942,0.04928976,87050.0,87044.0,0.323]
[1763661065140,0.01802464,87068.0,87045.0,0.01378597]
[1763661065379,0.001,87053.0,87047.0,0.323]
[1763661065556,0.01802464,87068.0,87048.0,0.01378549]
[1763661065791,0.01802464,87068.0,87049.0,0.05117526]
[1763661066186,0.03907,87095.0,87050.0,0.04015]
[1763661066187,0.04928976,87076.0,87050.0,0.04015]
[1763661066419,0.04928976,87068.0,87061.0,0.323]
[1763661066625,0.01,87063.0,87042.0,0.02005]
[1763661066828,0.01,87063.0,87040.0,0.77838522]
[1763661066829,0.04928976,87054.0,87040.0,0.00012556]
[1763661067041,0.01978,87072.0,87040.0,0.77838522]
[1763661067238,0.36603378,87120.0,87061.0,0.323]
[1763661067239,0.01912,87100.0,87061.0,0.323]
[1763661067520,0.01912,87100.0,87062.0,0.01378328]
[1763661067521,0.06802532,87079.0,87062.0,0.01378328]
[1763661067665,0.01,87091.0,87071.0,0.323]
[1763661067867,0.01912,87100.0,87071.0,0.323]
[1763661067868,0.01802408,87088.0,87081.0,0.323]
[1763661068098,0.01802408,87088.0,87087.0,0.02005]
[1763661068288,0.01,87106.0,87087.0,0.0602]
[1763661068492,0.001,87100.0,87091.0,0.323]
[1763661068902,0.00112556,87100.0,87092.0,0.04015]
[1763661069106,0.00012556,87100.0,87092.0,0.04015]
[1763661069507,0.00012556,87100.0,87097.0,0.323]
[1763661069709,0.00012556,87100.0,87098.0,0.08048771]
[1763661069908,0.00012556,87100.0,87099.0,0.323]
[1763661070131,0.00012556,87100.0,87099.0,0.36315]
[1763661070502,0.00012556,87100.0,87099.0,0.36711]
[1763661070980,0.00012556,87100.0,87099.0,0.04411]
[1763661071210,0.00012556,87100.0,87099.0,0.09001596]
[1763661071400,0.01801709,87124.0,87101.0,0.323]
[1763661071401,0.01636008,87124.0,87101.0,0.323]
[1763661071543,0.05,87115.0,87101.0,0.323]
[1763661071752,0.00041838,87124.0,87101.0,0.323]
[1763661071981,0.01,87110.0,87101.0,0.323]
[1763661072190,0.01,87110.0,87099.0,0.001]
[1763661072602,0.01,87110.0,87091.0,0.323]
[1763661072813,0.03907,87110.0,87091.0,0.323]
[1763661073008,0.05,87094.0,87078.0,0.02005]
[1763661073210,0.001,87124.0,87080.0,0.77825966]
[1763661073421,0.05,87111.0,87091.0,0.323]
[1763661073648,0.05210249,87122.0,87081.0,0.36315]
[1763661073866,0.05,87095.0,87083.0,0.323]
[1763661074204,0.03907,87121.0,87083.0,0.32312556]
[1763661074410,0.05,87102.0,87084.0,0.04015]
[1763661074616,0.0002,87130.0,87091.0,0.323]
[1763661074824,0.01,87121.0,87111.0,0.323]
[1763661075031,0.001,87122.0,87112.0,0.06416]
[1763661075244,0.001,87122.0,87113.0,0.323]
[1763661075440,0.0002,87130.0,87114.0,0.04015]
[1763661075670,0.0002,87130.0,87129.0,0.01758]
[1763661076049,0.01801756,87183.0,87129.0,0.05773]
[1763661076269,0.00032549,87150.0,87130.0,0.04756396]
[1763661076503,0.00032549,87150.0,87131.0,0.32696]
[1763661076908,0.00032549,87150.0,87132.0,0.04015]
[1763661077103,0.00032549,87150.0,87141.0,0.323]
[1763661077290,0.01801756,87183.0,87141.0,0.323]
[1763661077493,0.01800829,87190.0,87167.0,0.02005]
[1763661077732,0.02400958,87197.0,87167.0,0.0602]
[1763661077929,0.01800472,87197.0,87167.0,0.066616]
[1763661078143,0.0148,87211.0,87167.0,0.066616]
[1763661078144,0.0148,87211.0,87168.0,0.323]
[1763661078370,0.0148,87211.0,87169.0,0.09225249]
[1763661078541,0.0148,87211.0,87170.0,0.05606249]
[1763661078765,0.0002,87220.0,87176.0,0.43776708]
[1763661078944,0.0002,87220.0,87176.0,0.61701752]
[1763661079190,0.00622,87219.0,87176.0,0.58341753]
[1763661079403,0.0048755,87177.0,87176.0,0.53131504]
[1763661079736,0.00678876,87177.0,87176.0,0.58341753]
[1763661079939,0.0102,87220.0,87177.0,0.37510249]
[1763661080139,0.0102,87220.0,87176.0,0.20831504]
[1763661080140,0.00061822,87220.0,87199.0,0.323]
[1763661080341,0.00061822,87220.0,87200.0,0.04411]
[1763661080566,0.00061822,87220.0,87200.0,0.04015]
[1763661080773,0.00061822,87220.0,87201.0,0.00396]
[1763661080966,0.00061822,87220.0,87199.0,0.323]
[1763661081172,0.00989,87231.0,87191.0,0.08656011]
[1763661081349,0.00989,87231.0,87180.0,0.05210249]
[1763661081350,0.05,87224.0,87200.0,0.04015]
[1763661081551,0.05,87224.0,87192.0,0.323]
[1763661081752,0.01,87222.0,87193.0,0.06416]
[1763661081972,0.01,87222.0,87194.0,0.078866]
[1763661082174,0.00012536,87231.0,87194.0,0.04015]
[1763661082411,0.00012536,87231.0,87193.0,0.02401]
[1763661082412,0.00112536,87231.0,87195.0,0.04015]
[1763661083179,0.05,87212.0,87196.0,0.00396]
[1763661083389,0.05,87212.0,87176.0,0.25781921]
[1763661083390,0.05,87212.0,87182.0,0.02005]
[1763661083588,0.0458,87211.0,87176.0,0.01332609]
[1763661083910,0.01,87193.0,87170.0,0.04015]
[1763661084239,0.01,87200.0,87171.0,0.006416]
[1763661084473,0.08607897,87199.0,87169.0,0.00396]
[1763661084689,0.03907,87209.0,87157.0,0.17557235]
[1763661084690,0.05,87189.0,87157.0,0.17557235]
[1763661084885,0.05885,87188.0,87153.0,0.00396]
[1763661085085,0.05,87169.0,87153.0,0.00041822]
[1763661086032,0.01358,87154.0,87153.0,0.00041822]
[1763661086232,0.11568249,87154.0,87153.0,0.00041822]
[1763661086437,0.01358,87154.0,87153.0,0.00041822]
[1763661086634,0.10265,87154.0,87153.0,0.00041822]
[1763661086842,0.323,87168.0,87153.0,0.00041822]
[1763661087105,0.01,87155.0,87153.0,0.00041822]
[1763661087312,0.01800225,87171.0,87153.0,0.00041822]
[1763661087512,0.001,87154.0,87153.0,0.00041822]
[1763661087713,0.05707225,87171.0,87153.0,0.00041822]
[1763661087912,0.05,87157.0,87153.0,0.00041822]
[1763661088174,0.05,87154.0,87153.0,0.00041822]
[1763661088530,0.08907,87154.0,87153.0,0.00041822]
[1763661088930,0.14117249,87154.0,87153.0,0.00041822]
[1763661089139,0.46417249,87154.0,87153.0,0.00041822]
[1763661089340,0.15918079,87154.0,87153.0,0.00041822]
[1763661089545,0.0180083,87154.0,87153.0,0.00041822]
[1763661089836,0.11918079,87154.0,87153.0,0.00041822]
[1763661090091,0.0680083,87154.0,87153.0,0.00041822]
[1763661090278,0.48337079,87154.0,87153.0,0.00041822]
[1763661090480,0.16037079,87154.0,87153.0,0.00041822]
[1763661090914,0.14236249,87154.0,87153.0,0.00041822]
[1763661091125,0.16037039,87154.0,87153.0,0.00041822]
[1763661091334,0.05210249,87148.0,87112.0,0.00252543]
[1763661091540,0.05,87147.0,87113.0,0.01377521]
[1763661091837,0.05,87140.0,87114.0,0.0074599]
[1763661092054,0.05,87139.0,87115.0,0.01377489]
[1763661092170,0.05,87139.0,87113.0,0.03783]
[1763661092537,0.0582679,87154.0,87112.0,0.00294381]
[1763661092538,0.05,87130.0,87112.0,0.00294381]
[1763661092808,0.01,87129.0,87112.0,0.00294381]
[1763661093017,0.05,87121.0,87112.0,0.00294381]
[1763661093450,0.05,87113.0,87112.0,0.00294381]
[1763661093673,0.08874,87113.0,87112.0,0.00294381]
[1763661093893,0.05,87113.0,87112.0,0.00294381]
[1763661094317,0.01,87113.0,87112.0,0.00294381]
[1763661094430,0.02212,87120.0,87112.0,0.00294381]
[1763661094666,0.05,87116.0,87112.0,0.00294381]
[1763661094863,0.05210249,87130.0,87112.0,0.00294381]
[1763661095250,0.03874,87143.0,87112.0,0.00294381]
[1763661095693,0.01921,87146.0,87113.0,0.03811]
[1763661095865,0.002,87116.0,87113.0,0.03811]
[1763661096058,0.05,87149.0,87113.0,0.03811]
[1763661096261,0.05,87150.0,87114.0,0.01377505]
[1763661096418,0.052,87143.0,87114.0,0.01377505]
[1763661096619,0.05,87143.0,87115.0,0.03811]
[1763661096862,0.01,87147.0,87116.0,0.01377473]
[1763661097078,0.09084249,87162.0,87112.0,0.00294381]
[1763661097079,0.323,87159.0,87112.0,0.00294381]
[1763661097291,0.01,87144.0,87113.0,0.05188521]
[1763661097463,0.03874,87160.0,87113.0,0.05188521]
[1763661097786,0.05,87152.0,87114.0,0.03811]
[1763661097945,0.05210249,87151.0,87114.0,0.03811]
[1763661098146,0.05210249,87151.0,87112.0,0.00294381]
[1763661098147,0.05210249,87150.0,87112.0,0.00294381]
[1763661098374,0.09084249,87150.0,87112.0,0.00294381]
[1763661098651,0.05210249,87148.0,87113.0,0.06403493]
[1763661098876,0.05210249,87148.0,87113.0,0.04925972]
[1763661098877,0.05,87141.0,87113.0,0.04925972]
[1763661099345,0.01800995,87150.0,87112.0,0.00294381]
[1763661099346,0.05,87132.0,87112.0,0.00294381]
[1763661099572,0.05,87135.0,87112.0,0.00294381]
[1763661100269,0.01,87133.0,87112.0,0.00294381]
[1763661100495,0.03874,87134.0,87112.0,0.00294381]
[1763661100709,0.05,87126.0,87112.0,0.00294381]
[1763661101167,0.01,87133.0,87112.0,0.00294381]
[1763661101388,0.01921,87139.0,87112.0,0.00294381]
[1763661101389,0.02921,87139.0,87112.0,0.00294381]
[1763661101601,0.05,87127.0,87113.0,0.04168935]
[1763661101822,0.05,87127.0,87112.0,0.00294381]
[1763661101823,0.001,87126.0,87112.0,0.00294381]
[1763661102324,0.05,87130.0,87112.0,0.00294381]
[1763661103464,0.001,87133.0,87112.0,0.00294381]
[1763661103718,0.001,87133.0,87113.0,0.03811]
[1763661103929,0.05,87130.0,87112.0,0.00294381]
[1763661104152,0.05,87130.0,87112.0,0.03553819]
[1763661104600,0.01801086,87136.0,87112.0,0.03553819]
[1763661104829,0.05,87133.0,87112.0,0.03553819]
[1763661105050,0.05,87133.0,87112.0,0.00294381]
[1763661105478,0.01,87132.0,87112.0,0.00294381]
[1763661105685,0.01801086,87136.0,87112.0,0.00294381]
[1763661106045,0.01801086,87136.0,87113.0,0.01377521]
[1763661106247,0.01801086,87136.0,87100.0,0.05210249]
[1763661106437,0.01801086,87136.0,87092.0,0.04092884]
[1763661106438,0.01842857,87136.0,87110.0,0.11476708]
[1763661106640,0.01842857,87136.0,87111.0,0.02525223]
[1763661106869,0.00041771,87136.0,87111.0,0.10242635]
[1763661107634,0.001,87132.0,87111.0,0.10242635]
[1763661108116,0.00041771,87136.0,87111.0,0.10242635]
[1763661108244,0.00041771,87136.0,87112.0,0.3584947]
[1763661108448,0.00041771,87136.0,87126.0,0.323]
[1763661108647,0.00041771,87136.0,87128.0,0.323]
[1763661109893,0.00041771,87136.0,87116.0,0.00396]
[1763661110095,0.00041771,87136.0,87109.0,0.00396]
[1763661110340,0.00041771,87136.0,87113.0,0.323]
[1763661110492,0.00041771,87136.0,87113.0,0.316835]
[1763661110673,0.05,87135.0,87113.0,0.316835]
[1763661110875,0.0282339,87136.0,87105.0,0.09094964]
[1763661111113,0.01921,87143.0,87100.0,0.0055]
[1763661111316,0.05210249,87140.0,87100.0,0.01045867]
[1763661111520,0.01921,87143.0,87100.0,0.01045867]
[1763661111521,0.05,87124.0,87100.0,0.01045867]
[1763661111724,0.05,87124.0,87101.0,0.0137771]
[1763661111955,0.37510249,87141.0,87102.0,0.11476708]
[1763661111956,0.01,87136.0,87102.0,0.11476708]
[1763661112161,0.02118079,87135.0,87102.0,0.11476708]
[1763661112374,0.05,87133.0,87103.0,0.12026708]
[1763661112610,0.02118079,87132.0,87118.0,0.323]
[1763661112789,0.01921,87157.0,87119.0,0.05755097]
[1763661113003,0.02121495,87146.0,87121.0,0.323]
[1763661113226,0.02121604,87145.0,87121.0,0.323]
[1763661113439,0.001,87140.0,87122.0,0.0055]
[1763661113661,0.01921,87157.0,87121.0,0.323]
[1763661113662,0.05,87148.0,87121.0,0.323]
[1763661113871,0.05,87139.0,87117.0,0.00396]
[1763661114067,0.02126517,87138.0,87115.0,0.323]
[1763661114373,0.02126517,87137.0,87118.0,0.323]
[1763661114569,0.02126517,87136.0,87119.0,0.0642586]
[1763661114867,0.01800811,87147.0,87119.0,0.0642586]
[1763661114868,0.01800811,87147.0,87119.0,0.05598434]
[1763661115005,0.02129367,87146.0,87120.0,0.07535046]
[1763661115213,0.02129367,87145.0,87121.0,0.0055]
[1763661115484,0.02129367,87144.0,87116.0,0.06157636]
[1763661115637,0.05,87136.0,87115.0,0.06157636]
[1763661115846,0.02129367,87135.0,87111.0,0.06157636]
[1763661116057,0.02129367,87134.0,87110.0,0.06157636]
[1763661116292,0.03874,87143.0,87102.0,0.00396]
[1763661116293,0.01800963,87131.0,87116.0,0.06157636]
[1763661116499,0.02129367,87130.0,87116.0,0.06157636]
[1763661116675,0.02129367,87129.0,87117.0,0.06157636]
[1763661116877,0.03874,87144.0,87112.0,0.323]
[1763661116878,0.02129367,87128.0,87116.0,0.06157636]
[1763661117082,0.02129367,87127.0,87117.0,0.07535093]
[1763661117282,0.02129367,87126.0,87120.0,0.06157636]
[1763661117505,0.01800811,87147.0,87122.0,0.06157636]
[1763661117708,0.01800811,87147.0,87123.0,0.06157636]
[1763661117709,0.02133933,87146.0,87123.0,0.06157636]
[1763661117909,0.02133933,87145.0,87123.0,0.06157636]
[1763661118249,0.02133933,87144.0,87124.0,0.06157636]
[1763661118447,0.02133933,87143.0,87125.0,0.00615764]
[1763661118602,0.02133933,87142.0,87125.0,0.00615764]
[1763661118802,0.02133933,87141.0,87125.0,0.00615764]
[1763661118993,0.02133933,87140.0,87125.0,0.00615764]
[1763661119215,0.01800811,87147.0,87124.0,0.06157636]
[1763661119216,0.02133933,87139.0,87126.0,0.01277362]
[1763661119419,0.02133933,87138.0,87126.0,0.01277362]
[1763661119625,0.02133933,87137.0,87125.0,0.06157636]
[1763661119829,0.02133933,87136.0,87124.0,0.06157636]
[1763661120061,0.02133933,87135.0,87124.0,0.06157636]
[1763661120263,0.02133933,87134.0,87121.0,0.06157636]
[1763661120500,0.02133933,87133.0,87118.0,0.06157636]
[1763661120774,0.56946466,87170.0,87118.0,0.06157636]
[1763661120775,0.02133933,87132.0,87121.0,0.323]
[1763661120977,0.03874,87161.0,87127.0,0.06157636]
[1763661121221,0.02132092,87156.0,87134.0,0.17634344]
[1763661121453,0.02132092,87155.0,87135.0,0.07534809]
[1763661121661,0.01921,87166.0,87135.0,0.07534809]
[1763661121662,0.02132092,87154.0,87135.0,0.06157636]
[1763661121836,0.02132092,87153.0,87135.0,0.06868]
[1763661122037,0.02132092,87153.0,87126.0,0.323]
[1763661122038,0.02132092,87152.0,87134.0,0.06157636]
[1763661122266,0.05,87148.0,87135.0,0.00012542]
[1763661122447,0.02132092,87147.0,87135.0,0.01389715]
[1763661122664,0.03070854,87191.0,87143.0,0.323]
[1763661122881,0.03200932,87184.0,87165.0,0.00351]
[1763661123093,0.03911,87201.0,87165.0,0.00351]
[1763661123094,0.03200932,87183.0,87171.0,0.323]
[1763661123266,0.02133955,87182.0,87171.0,0.323]
[1763661123449,0.02133955,87181.0,87173.0,0.323]
[1763661123653,0.02133955,87180.0,87173.0,0.323]
[1763661124026,0.001,87184.0,87175.0,0.05210249]
[1763661124228,0.01853,87214.0,87178.0,0.37510249]
[1763661124357,0.01853,87214.0,87184.0,0.43776708]
[1763661124563,0.01853,87214.0,87184.0,0.323]
[1763661124777,0.01853,87214.0,87184.0,0.39216298]
[1763661124982,0.01853,87214.0,87184.0,0.33047]
[1763661125441,0.01853,87223.0,87184.0,0.33047]
[1763661125648,0.01853,87215.0,87184.0,0.33047]
[1763661125789,0.01377533,87238.0,87184.0,0.33047]
[1763661125790,0.01853,87231.0,87185.0,0.37510249]
[1763661126009,0.02131272,87230.0,87197.0,0.323]
[1763661126253,0.02131272,87229.0,87206.0,0.11476708]
[1763661126404,0.01865542,87231.0,87201.0,0.323]
[1763661126608,0.01865542,87231.0,87206.0,0.11476708]
[1763661126836,0.01865542,87231.0,87201.0,0.323]
[1763661127037,0.01865542,87231.0,87210.0,0.46260189]
[1763661127235,0.001,87230.0,87202.0,0.00351]
[1763661127436,0.01799278,87229.0,87206.0,0.11476708]
[1763661127596,0.01799278,87229.0,87210.0,0.46260189]
[1763661128385,0.01799278,87229.0,87211.0,0.00355]
[1763661128651,0.01799278,87229.0,87204.0,0.00396]
[1763661128652,0.03911,87228.0,87193.0,0.323]
[1763661128839,0.05288533,87228.0,87198.0,0.11476708]
[1763661129017,0.05288533,87228.0,87194.0,0.05287167]
[1763661129018,0.05288533,87228.0,87195.0,0.323]
[1763661129232,0.03911,87228.0,87195.0,0.323]
[1763661129432,0.01377533,87227.0,87200.0,0.46260189]
[1763661129626,0.01799278,87229.0,87200.0,0.46260189]
[1763661129837,0.01799278,87229.0,87210.0,0.46260189]
[1763661130046,0.001,87228.0,87210.0,0.46260189]
[1763661130240,0.01799076,87225.0,87206.0,0.323]
[1763661130473,0.01799076,87225.0,87196.0,0.09094964]
[1763661130676,0.01799076,87225.0,87195.0,0.323]
[1763661130677,0.05,87224.0,87201.0,0.323]
[1763661130894,0.01799278,87229.0,87201.0,0.323]
[1763661131164,0.03911,87228.0,87201.0,0.323]
[1763661131371,0.01799278,87229.0,87210.0,0.46260189]
[1763661131598,0.001,87227.0,87201.0,0.323]
[1763661131793,0.00334007,87211.0,87210.0,0.46260189]
[1763661131958,0.00334007,87211.0,87210.0,0.323]
[1763661132167,0.00334007,87211.0,87210.0,0.33406]
[1763661132372,0.00334007,87211.0,87210.0,0.32655]
[1763661132954,0.00334007,87211.0,87198.0,0.00355]
[1763661132955,0.00334007,87211.0,87197.0,0.09094964]
[1763661133159,0.00012542,87231.0,87210.0,0.00355]
[1763661133359,0.00012542,87231.0,87219.0,0.46260189]
[1763661133559,0.00012542,87231.0,87210.0,0.00455]
[1763661133745,0.00012542,87231.0,87210.0,0.001]
[1763661133946,0.03911,87230.0,87210.0,0.001]
[1763661134146,0.01377533,87229.0,87211.0,0.11831708]
[1763661134364,0.00012542,87231.0,87211.0,0.323]
[1763661135207,0.00012542,87231.0,87220.0,0.46260189]
[1763661135381,0.001,87229.0,87212.0,0.00355]
[1763661135603,0.00012542,87231.0,87210.0,0.09094964]
[1763661136250,0.00012542,87231.0,87221.0,0.323]
[1763661136657,0.00012542,87231.0,87210.0,0.09094964]
[1763661136812,0.00012542,87231.0,87200.0,0.46260189]
[1763661136813,0.00012542,87231.0,87206.0,0.00396]
[1763661137009,0.00012542,87231.0,87211.0,0.323]
[1763661137210,0.00012542,87231.0,87212.0,0.01375957]
[1763661139572,0.00012542,87231.0,87222.0,0.01375799]
[1763661141323,0.00012542,87231.0,87223.0,0.323]
[1763661141523,0.00012542,87231.0,87224.0,0.01375768]
[1763661141920,0.00012542,87231.0,87230.0,0.00355]
[1763661142326,0.00012542,87231.0,87223.0,0.41394964]
[1763661142327,0.00012542,87231.0,87223.0,0.09094964]
[1763661142498,0.00012542,87231.0,87221.0,0.323]
[1763661142703,0.00012542,87231.0,87214.0,0.09094964]
[1763661142930,0.03923542,87231.0,87214.0,0.09094964]
[1763661143156,0.05,87228.0,87215.0,0.0137591]
[1763661143472,0.00012542,87231.0,87206.0,0.00396]
[1763661143473,0.00012542,87231.0,87210.0,0.46260189]
[1763661143743,0.00012542,87231.0,87218.0,0.46260189]
[1763661143935,0.00012542,87231.0,87214.0,0.323]
[1763661144137,0.00012542,87231.0,87230.0,0.001]
[1763661144343,0.01798932,87227.0,87214.0,0.323]
[1763661144558,0.01798932,87227.0,87215.0,0.0137591]
[1763661145182,0.01798932,87227.0,87211.0,0.323]
[1763661145392,0.01798965,87225.0,87211.0,0.323]
[1763661145805,0.01798965,87225.0,87200.0,0.46260189]
[1763661145806,0.01798965,87225.0,87201.0,0.323]
[1763661146040,0.03911,87224.0,87188.0,0.13171379]
[1763661146244,0.51260189,87220.0,87181.0,0.11476708]
[1763661146447,0.05,87212.0,87182.0,0.3367643]
[1763661146659,0.05,87212.0,87182.0,0.323]
[1763661146864,0.08911,87211.0,87182.0,0.323]
[1763661147085,0.08911,87211.0,87184.0,0.323]
[1763661147291,0.03911,87210.0,87181.0,0.00396]
[1763661147771,0.05,87197.0,87172.0,0.04076415]
[1763661148011,0.46260189,87200.0,87165.0,0.04076415]
[1763661148208,0.03911,87210.0,87180.0,0.46260189]
[1763661148417,0.03911,87210.0,87176.0,0.11476708]
[1763661148418,0.0212462,87209.0,87191.0,0.323]
[1763661148625,0.01798965,87225.0,87191.0,0.323]
[1763661148626,0.22920024,87260.0,87200.0,0.46260189]
[1763661148835,0.46260189,87240.0,87210.0,0.00999999]
[1763661149042,0.01799218,87223.0,87208.0,0.01845]
[1763661149264,0.01799218,87223.0,87200.0,0.00999999]
[1763661149265,0.02124242,87222.0,87201.0,0.01845]
[1763661149470,0.02124242,87222.0,87200.0,0.00999999]
[1763661149471,0.01335,87209.0,87200.0,0.00999999]
[1763661149674,0.48059544,87220.0,87200.0,0.00999999]
[1763661149890,0.07126464,87219.0,87200.0,0.00999999]
[1763661150109,0.00349687,87216.0,87210.0,0.00999999]
[1763661150310,0.01799355,87220.0,87210.0,0.00999999]
[1763661150311,0.00012542,87219.0,87210.0,0.00999999]
[1763661150444,0.01799202,87215.0,87210.0,0.00999999]
[1763661151221,0.06799202,87215.0,87200.0,0.00999999]
[1763661151484,0.02128808,87214.0,87200.0,0.00999999]
[1763661151688,0.02128808,87213.0,87200.0,0.00999999]
[1763661151818,0.02128808,87212.0,87194.0,0.01845]
[1763661152021,0.02128808,87211.0,87194.0,0.06865718]
[1763661152221,0.02128808,87210.0,87200.0,0.00999999]
[1763661152451,0.01799202,87215.0,87200.0,0.00999999]
[1763661152702,0.46260189,87210.0,87194.0,0.05921415]
[1763661152872,0.0213214,87209.0,87200.0,0.00999999]
[1763661153026,0.0213214,87208.0,87201.0,0.01376131]
[1763661153388,0.0213214,87208.0,87201.0,0.03526]
[1763661153601,0.0213214,87208.0,87201.0,0.01376131]
[1763661153817,0.0213214,87208.0,87200.0,0.00999999]
[1763661154287,0.0213214,87208.0,87207.0,0.02356]
[1763661154504,0.14442658,87209.0,87207.0,0.05882]
[1763661154713,0.01799202,87215.0,87208.0,0.02356]
[1763661154928,0.01799202,87215.0,87214.0,0.01789]
[1763661155137,0.01799202,87215.0,87208.0,0.04076415]
[1763661155138,0.03938672,87215.0,87208.0,0.04076415]
[1763661155365,0.03938672,87215.0,87200.0,0.00999999]
[1763661155366,0.0213947,87214.0,87209.0,0.05452419]
[1763661155595,0.00334007,87211.0,87204.0,0.04076415]
[1763661155804,0.0213947,87210.0,87204.0,0.04076415]
[1763661156003,0.0213947,87209.0,87203.0,0.04076415]
[1763661156177,0.021404,87208.0,87200.0,0.00999999]
[1763661156381,0.021404,87207.0,87200.0,0.0168654]
[1763661156567,0.01799202,87215.0,87203.0,0.04076415]
[1763661156765,0.02140896,87214.0,87201.0,0.04076415]
[1763661156967,0.02140896,87213.0,87201.0,0.04076415]
[1763661157170,0.01799202,87215.0,87201.0,0.04076415]
[1763661157171,0.02140896,87212.0,87201.0,0.04076415]
[1763661157371,0.02140896,87211.0,87202.0,0.04076415]
[1763661157570,0.02140896,87210.0,87201.0,0.04076415]
[1763661157943,0.02140896,87209.0,87201.0,0.04076415]
[1763661158067,0.01799202,87215.0,87214.0,0.02356]
[1763661158282,0.03938734,87215.0,87210.0,0.05119884]
[1763661158549,0.02139205,87214.0,87204.0,0.04119885]
[1763661158767,0.02139205,87214.0,87200.0,0.33299999]
[1763661158768,0.05210249,87243.0,87200.0,0.33299999]
[1763661158769,0.02139263,87213.0,87211.0,0.03526]
[1763661158976,0.01831,87239.0,87211.0,0.03526]
[1763661158977,0.06831,87239.0,87214.0,0.02356]
[1763661159199,0.06831,87239.0,87230.0,0.00999999]
[1763661159200,0.14442658,87239.0,87230.0,0.00999999]
[1763661159415,0.03621,87254.0,87230.0,0.00999999]
[1763661159416,0.01798959,87254.0,87230.0,0.00999999]
[1763661159624,0.01,87252.0,87231.0,0.05137984]
[1763661159830,0.04691177,87253.0,87230.0,0.00999999]
[1763661159831,0.05,87243.0,87230.0,0.00999999]
[1763661160040,0.001,87239.0,87230.0,0.00999999]